fUST/lending_fUST_20240826
["ID","MTS","AMOUNT","RATE_DAILY","PERIOD"]
[336057081,1724682662212,-502.52,0.00012337,2]
[336057082,1724682662222,-1187.24,0.00012337,2]
[336057083,1724682662233,-500.0,0.00012337,2]
[336057084,1724682662244,-705.46,0.00012337,2]
[336057085,1724682662253,-502.63,0.00012337,2]
[336057086,1724682662263,-14.19766241,0.00012337,2]
[336057087,1724682662552,-898.05,0.00011515,2]
[336057088,1724682662562,-500.0,0.00011515,2]
[336057089,1724682662573,-898.05,0.00011789,2]
[336057090,1724682662584,-500.0,0.00011789,2]
[336057091,1724682662596,-898.05,0.00012063,2]
[336057092,1724682662605,-624.54,0.00012063,2]
[336057093,1724682662615,-156.21669459,0.00012337,2]
[336057094,1724682662624,-500.0,0.00012337,2]
[336057095,1724682662633,-309.314066,0.00012337,2]
[336057096,1724682662643,-170.414357,0.00012337,2]
[336057097,1724682662654,-309.314066,0.00012337,2]
[336057098,1724682662664,-151.0,0.00012337,2]
[336057099,1724682662674,-764.24,0.00012337,2]
[336057100,1724682662684,-500.0,0.00012337,2]
[336057101,1724682662694,-151.0,0.00012337,2]
[336057102,1724682662704,-500.0,0.00012337,2]
[336057103,1724682662714,-151.0,0.00012337,2]
[336057104,1724682662724,-210.045066,0.00012337,2]
[336057105,1724682662737,-1446.51,0.00012337,2]
[336057106,1724682662747,-656.56,0.00012337,2]
[336057107,1724682662759,-1136.38,0.00012337,2]
[336057108,1724682662768,-504.8,0.00012337,2]
[336057109,1724682662779,-210.045066,0.00012337,2]
[336057110,1724682662948,-571.52,0.00012337,2]
[336057111,1724682662959,-500.0,0.00012337,2]
[336057112,1724682662968,-530.55944719,0.00012337,2]
[336057113,1724682662977,-652.99,0.00012337,2]
[336057114,1724682662987,-500.0,0.00012337,2]
[336057115,1724682662997,-500.0,0.00012337,2]
[336057116,1724682663007,-692.96,0.00012337,2]
[336057117,1724682663016,-622.2,0.00012337,2]
[336057118,1724682663025,-500.0,0.00012337,2]
[336057119,1724682663035,-500.0,0.00012337,2]
[336057120,1724682663045,-3036.48,0.00012337,2]
[336057121,1724682663055,-577.87,0.00012337,2]
[336057122,1724682663065,-500.0,0.00012337,2]
[336057123,1724682663074,-500.0,0.00012337,2]
[336057124,1724682663084,-1174.66,0.00012337,2]
[336057125,1724682663098,-500.0,0.00012337,2]
[336057126,1724682663107,-967.79,0.00012337,2]
[336057127,1724682663116,-500.0,0.00012337,2]
[336057128,1724682663126,-500.0,0.00012337,2]
[336057129,1724682663135,-500.0,0.00012337,2]
[336057130,1724682663145,-655.78,0.00012337,2]
[336057131,1724682663157,-700.99,0.00012337,2]
[336057132,1724682663167,-707.65,0.00012337,2]
[336057133,1724682663177,-983.65,0.00012337,2]
[336057134,1724682663186,-513.66,0.00012337,2]
[336057135,1724682663196,-520.5,0.00012337,2]
[336057136,1724682663206,-731.14,0.00012337,2]
[336057137,1724682663215,-898.05,0.00012337,2]
[336057138,1724682663224,-482.91889987,0.00012338,2]
[336057139,1724682663234,-565.71,0.00012338,2]
[336057140,1724682663243,-500.0,0.00012338,2]
[336057141,1724682663253,-500.0,0.00012338,2]
[336057142,1724682663263,-500.0,0.00012338,2]
[336057143,1724682663272,-509.36192606,0.00012338,2]
[336057144,1724682663282,-277.59803413,0.00012338,2]
[336057145,1724682663846,-500.0,0.00011514,2]
[336057146,1724682663855,-500.0,0.00011515,2]
[336057147,1724682663866,-500.0,0.00011515,2]
[336057148,1724682663876,-500.0,0.00011516,2]
[336057149,1724682663886,-500.0,0.00011788,2]
[336057150,1724682663895,-500.0,0.00011789,2]
[336057151,1724682663904,-500.0,0.0001179,2]
[336057152,1724682663913,-500.0,0.00012062,2]
[336057153,1724682663921,-604.63,0.00012063,2]
[336057154,1724682663930,-419.50909302,0.00012065,5]
[336057155,1724682663939,-500.0,0.00012336,2]
[336057156,1724682663949,-222.40196587,0.00012338,2]
[336057157,1724682663958,-500.0,0.00012338,2]
[336057158,1724682663968,-500.0,0.00012338,2]
[336057159,1724682663978,-500.0,0.00012338,2]
[336057160,1724682663987,-500.0,0.00012338,2]
[336057161,1724682663997,-500.0,0.00012338,2]
[336057162,1724682664006,-500.0,0.00012338,2]
[336057163,1724682664016,-500.0,0.00012338,2]
[336057164,1724682664025,-500.0,0.00012338,2]
[336057165,1724682664034,-500.0,0.00012338,2]
[336057166,1724682664043,-500.0,0.00012338,2]
[336057167,1724682664053,-500.0,0.00012338,2]
[336057168,1724682664062,-500.0,0.00012338,2]
[336057169,1724682664071,-500.0,0.00012338,2]
[336057170,1724682664080,-649.16,0.00012338,2]
[336057171,1724682664093,-500.0,0.00012338,2]
[336057172,1724682664103,-649.88,0.00012338,2]
[336057173,1724682664112,-500.0,0.00012338,2]
[336057174,1724682664122,-500.0,0.00012338,2]
[336057175,1724682664133,-500.0,0.00012338,2]
[336057176,1724682664142,-500.0,0.00012338,2]
[336057177,1724682664151,-656.36,0.00012338,2]
[336057178,1724682664161,-500.0,0.00012338,2]
[336057179,1724682664171,-924.1,0.00012338,2]
[336057180,1724682664180,-500.0,0.00012338,2]
[336057181,1724682664190,-500.0,0.00012338,2]
[336057182,1724682664200,-500.0,0.00012338,2]
[336057183,1724682664209,-500.0,0.00012338,2]
[336057184,1724682664219,-500.0,0.00012338,2]
[336057185,1724682664228,-500.0,0.00012338,2]
[336057186,1724682664238,-500.0,0.00012338,2]
[336057187,1724682664248,-500.0,0.00012338,2]
[336057188,1724682664258,-500.0,0.00012338,2]
[336057189,1724682664267,-500.0,0.00012338,2]
[336057190,1724682664278,-500.0,0.00012338,2]
[336057191,1724682664288,-500.0,0.00012338,2]
[336057192,1724682664298,-500.0,0.00012338,2]
[336057193,1724682664308,-466.91803791,0.00012338,2]
[336057194,1724682664322,-33.08196209,0.00012338,2]
[336057195,1724682664332,-500.0,0.00012338,2]
[336057196,1724682664347,-500.0,0.00012338,2]
[336057197,1724682664358,-998.79,0.00012338,2]
[336057198,1724682664367,-519.26,0.00012338,2]
[336057199,1724682664376,-500.0,0.00012338,2]
[336057200,1724682664385,-500.0,0.00012338,2]
[336057201,1724682664394,-500.0,0.00012338,2]
[336057202,1724682664403,-500.0,0.00012338,2]
[336057203,1724682664412,-500.0,0.00012338,2]
[336057204,1724682664421,-500.0,0.00012338,2]
[336057205,1724682664430,-1133.74,0.00012338,2]
[336057206,1724682664439,-500.0,0.00012338,2]
[336057207,1724682664449,-500.0,0.00012338,2]
[336057208,1724682664459,-500.0,0.00012338,2]
[336057209,1724682664469,-500.0,0.00012338,2]
[336057210,1724682664479,-1146.62,0.00012338,2]
[336057211,1724682664488,-500.0,0.00012338,2]
[336057212,1724682664497,-500.0,0.00012338,2]
[336057213,1724682664507,-500.0,0.00012338,2]
[336057214,1724682664519,-500.0,0.00012338,2]
[336057215,1724682664529,-500.0,0.00012338,2]
[336057216,1724682664538,-500.0,0.00012338,2]
[336057217,1724682664548,-512.56,0.00012338,2]
[336057218,1724682664558,-500.0,0.00012338,2]
[336057219,1724682664568,-998.55,0.00012338,2]
[336057220,1724682664578,-519.63,0.00012338,2]
[336057221,1724682664591,-673.71,0.00012338,2]
[336057222,1724682664601,-500.0,0.00012338,2]
[336057223,1724682664613,-500.0,0.00012338,2]
[336057224,1724682664622,-500.0,0.00012338,2]
[336057225,1724682664632,-500.0,0.00012338,2]
[336057226,1724682664641,-645.25,0.00012338,2]
[336057227,1724682664650,-500.0,0.00012338,2]
[336057228,1724682664660,-698.65,0.00012338,2]
[336057229,1724682664669,-500.0,0.00012338,2]
[336057230,1724682664679,-500.0,0.00012338,2]
[336057231,1724682664689,-554.7,0.00012338,2]
[336057232,1724682664700,-885.02,0.00012338,2]
[336057233,1724682664709,-169.57906181,0.00012338,2]
[336057234,1724682664720,-587.24,0.00012338,2]
[336057235,1724682664732,-500.0,0.00012338,2]
[336057236,1724682664743,-892.42,0.00012338,2]
[336057237,1724682664753,-1206.11,0.00012338,2]
[336057238,1724682664763,-536.52,0.00012338,2]
[336057239,1724682664773,-500.0,0.00012338,2]
[336057240,1724682664784,-542.47,0.00012338,2]
[336057241,1724682664797,-500.0,0.00012338,2]
[336057242,1724682664807,-741.15,0.00012338,2]
[336057243,1724682664818,-500.0,0.00012338,2]
[336057244,1724682664827,-500.0,0.00012338,2]
[336057245,1724682664842,-500.0,0.00012338,2]
[336057246,1724682664852,-500.0,0.00012338,2]
[336057247,1724682664864,-658.42,0.00012338,2]
[336057248,1724682664875,-612.04,0.00012338,2]
[336057249,1724682664885,-724.95,0.00012338,2]
[336057250,1724682664895,-641.65675802,0.00012338,2]
[336057251,1724682664907,-664.03,0.00012338,2]
[336057252,1724682664916,-887.95,0.00012338,2]
[336057253,1724682664927,-500.0,0.00012338,2]
[336057254,1724682664938,-500.0,0.00012338,2]
[336057255,1724682664948,-500.0,0.00012338,2]
[336057256,1724682664958,-500.0,0.00012338,2]
[336057257,1724682664968,-162.21700301,0.00012338,2]
[336057258,1724682664979,-612.73,0.00012338,2]
[336057259,1724682664990,-548.79,0.00012338,2]
[336057260,1724682665001,-758.97,0.00012338,2]
[336057261,1724682665012,-500.0,0.00012338,2]
[336057262,1724682665021,-503.91676936,0.00012338,2]
[336057263,1724682665032,-500.0,0.00012338,2]
[336057264,1724682665041,-500.0,0.00012338,2]
[336057265,1724682665050,-500.0,0.00012338,2]
[336057266,1724682665060,-500.0,0.00012338,2]
[336057267,1724682665069,-500.0,0.00012338,2]
[336057268,1724682665080,-500.0,0.00012338,2]
[336057269,1724682665092,-741.09,0.00012338,2]
[336057270,1724682665100,-227.26765755,0.00012338,2]
[336057271,1724682665109,-500.0,0.00012338,2]
[336057272,1724682665119,-547.25,0.00012338,2]
[336057273,1724682665129,-500.0,0.00012338,2]
[336057274,1724682665138,-500.0,0.00012338,2]
[336057275,1724682665147,-500.0,0.00012338,2]
[336057276,1724682665157,-500.0,0.00012338,2]
[336057277,1724682665166,-595.47,0.00012338,2]
[336057278,1724682665176,-500.0,0.00012338,2]
[336057279,1724682665186,-500.0,0.00012338,2]
[336057280,1724682665196,-542.24,0.00012338,2]
[336057281,1724682665206,-151.0,0.00012339,2]
[336057282,1724682665216,-151.0,0.00012339,2]
[336057283,1724682665226,-907.696039,0.00012339,2]
[336057284,1724682665235,-907.696039,0.00012339,2]
[336057285,1724682665247,-151.0,0.00012339,2]
[336057286,1724682665256,-678.36,0.00012339,2]
[336057287,1724682665267,-588.47,0.00012339,2]
[336057288,1724682665277,-550.13,0.00012339,2]
[336057289,1724682665286,-500.0,0.00012339,2]
[336057290,1724682665297,-500.0,0.00012339,2]
[336057291,1724682665306,-644.2,0.00012339,2]
[336057292,1724682665315,-500.0,0.00012339,2]
[336057293,1724682665323,-825.34,0.00012339,2]
[336057294,1724682665332,-902.01,0.00012339,2]
[336057295,1724682665346,-705.05,0.00012339,2]
[336057296,1724682665356,-500.0,0.00012339,2]
[336057297,1724682665365,-792.92,0.00012339,2]
[336057298,1724682665376,-500.0,0.00012339,2]
[336057299,1724682665386,-500.0,0.00012339,2]
[336057300,1724682665396,-773.97,0.00012339,2]
[336057301,1724682665406,-500.0,0.00012339,2]
[336057302,1724682665415,-500.0,0.00012339,2]
[336057303,1724682665425,-500.0,0.00012339,2]
[336057304,1724682665436,-579.01,0.00012339,2]
[336057305,1724682665446,-633.63,0.00012339,2]
[336057306,1724682665456,-724.0,0.00012339,2]
[336057307,1724682665465,-500.0,0.00012339,2]
[336057308,1724682665475,-1230.77,0.00012339,2]
[336057309,1724682665486,-500.0,0.00012339,2]
[336057310,1724682665496,-505.86,0.00012339,2]
[336057311,1724682665507,-324.8688018,0.00012339,2]
[336057312,1724682665520,-175.1311982,0.00012339,2]
[336057313,1724682665530,-669.71,0.00012339,2]
[336057314,1724682665539,-500.0,0.00012339,2]
[336057315,1724682665548,-1106.83,0.00012339,2]
[336057316,1724682665557,-500.0,0.00012339,2]
[336057317,1724682665567,-500.0,0.00012339,2]
[336057318,1724682665577,-1085.1,0.00012339,2]
[336057319,1724682665586,-500.0,0.00012339,2]
[336057320,1724682665601,-500.0,0.00012339,2]
[336057321,1724682665611,-610.13,0.00012339,2]
[336057322,1724682665621,-500.0,0.00012339,2]
[336057323,1724682665631,-1181.46,0.00012339,2]
[336057324,1724682665642,-938.91,0.00012339,2]
[336057325,1724682665654,-568.84,0.00012339,2]
[336057326,1724682665664,-500.0,0.00012339,2]
[336057327,1724682665674,-1039.55,0.00012339,2]
[336057328,1724682665684,-320.25,0.00012339,2]
[336057329,1724682665693,-554.69,0.00012339,2]
[336057330,1724682665702,-587.78,0.00012339,2]
[336057331,1724682665711,-500.0,0.00012339,2]
[336057332,1724682665720,-500.0,0.00012339,2]
[336057333,1724682665730,-1016.05,0.00012339,2]
[336057334,1724682665740,-500.0,0.00012339,2]
[336057335,1724682665899,-920.7,0.00012339,2]
[336057336,1724682665908,-500.0,0.00012339,2]
[336057337,1724682665918,-801.09,0.00012339,2]
[336057338,1724682665927,-824.6637598,0.00012339,2]
[336057339,1724682665939,-397.1262402,0.00012339,2]
[336057340,1724682665947,-23.23991104,0.0001234,2]
[336057341,1724682665962,-252.54518078,0.0001234,2]
[336057342,1724682665972,-500.0,0.0001234,2]
[336057343,1724682665982,-500.0,0.0001234,2]
[336057344,1724682665991,-500.0,0.0001234,2]
[336057345,1724682666002,-292.4119444,0.0001234,2]
[336057346,1724682666012,-500.0,0.0001234,2]
[336057347,1724682666022,-151.0,0.0001234,2]
[336057348,1724682666032,-500.0,0.0001234,2]
[336057349,1724682666044,-151.0,0.0001234,2]
[336057350,1724682666054,-500.0,0.0001234,2]
[336057351,1724682666066,-832.71,0.0001234,2]
[336057352,1724682666075,-500.0,0.0001234,2]
[336057353,1724682666084,-521.57,0.0001234,2]
[336057354,1724682666095,-500.0,0.0001234,2]
[336057355,1724682666104,-500.0,0.0001234,2]
[336057356,1724682666115,-500.0,0.0001234,2]
[336057357,1724682666126,-665.17,0.0001234,2]
[336057358,1724682666137,-500.0,0.0001234,2]
[336057359,1724682666147,-500.0,0.0001234,2]
[336057360,1724682666160,-500.0,0.0001234,2]
[336057361,1724682666169,-678.27,0.0001234,2]
[336057362,1724682666179,-500.0,0.0001234,2]
[336057363,1724682666189,-829.02,0.0001234,2]
[336057364,1724682666199,-500.0,0.0001234,2]
[336057365,1724682666208,-500.0,0.0001234,2]
[336057366,1724682666220,-151.0,0.0001234,2]
[336057367,1724682666229,-500.0,0.0001234,2]
[336057368,1724682666239,-151.0,0.0001234,2]
[336057369,1724682666249,-500.0,0.0001234,2]
[336057370,1724682666262,-481.04876248,0.0001234,2]
[336057371,1724682666271,-500.0,0.0001234,2]
[336057372,1724682666281,-576.36,0.0001234,2]
[336057373,1724682666290,-500.0,0.0001234,2]
[336057374,1724682666300,-614.28,0.0001234,2]
[336057375,1724682666309,-500.0,0.0001234,2]
[336057376,1724682666320,-500.0,0.0001234,2]
[336057377,1724682666330,-228.53946708,0.0001234,2]
[336057378,1724682666647,-309.67712516,0.00011514,2]
[336057379,1724682666658,-190.32287484,0.00011514,2]
[336057380,1724682666668,-500.0,0.00011515,2]
[336057381,1724682666677,-500.0,0.00011515,2]
[336057382,1724682666686,-974.30984712,0.00011691,2]
[336057383,1724682666695,-500.0,0.00011788,2]
[336057384,1724682666703,-500.0,0.00011789,2]
[336057385,1724682666713,-421.9,0.00012062,2]
[336057386,1724682666722,-500.0,0.00012063,2]
[336057387,1724682666732,-271.46053292,0.0001234,2]
[336057388,1724682666741,-500.0,0.0001234,2]
[336057389,1724682666750,-500.0,0.0001234,2]
[336057390,1724682666759,-500.0,0.0001234,2]
[336057391,1724682666769,-500.0,0.0001234,2]
[336057392,1724682666779,-500.0,0.0001234,2]
[336057393,1724682666791,-881.93,0.0001234,2]
[336057394,1724682666801,-500.0,0.0001234,2]
[336057395,1724682666810,-500.0,0.0001234,2]
[336057396,1724682666819,-500.0,0.0001234,2]
[336057397,1724682666829,-500.0,0.0001234,2]
[336057398,1724682666840,-500.0,0.0001234,2]
[336057399,1724682666850,-500.0,0.0001234,2]
[336057400,1724682666859,-592.77987138,0.0001234,2]
[336057401,1724682666872,-174.492092,0.0001234,2]
[336057402,1724682666882,-500.0,0.0001234,2]
[336057403,1724682666891,-500.0,0.0001234,2]
[336057404,1724682666901,-174.492092,0.0001234,2]
[336057405,1724682666911,-1460.17,0.0001234,2]
[336057406,1724682666921,-500.0,0.0001234,2]
[336057407,1724682666930,-1035.4,0.0001234,2]
[336057408,1724682666940,-505.69,0.0001234,2]
[336057409,1724682666950,-828.67,0.0001234,2]
[336057410,1724682666959,-660.32,0.0001234,2]
[336057411,1724682666968,-685.49,0.0001234,2]
[336057412,1724682666978,-500.0,0.0001234,2]
[336057413,1724682666989,-993.74,0.0001234,2]
[336057414,1724682666998,-1022.13,0.0001234,2]
[336057415,1724682667007,-621.62,0.0001234,2]
[336057416,1724682667017,-500.0,0.0001234,2]
[336057417,1724682667026,-500.0,0.0001234,2]
[336057418,1724682667035,-611.27,0.0001234,2]
[336057419,1724682667045,-4304.749935,0.0001234,2]
[336057420,1724682667055,-500.0,0.0001234,2]
[336057421,1724682667064,-4304.749935,0.0001234,2]
[336057422,1724682667074,-691.38,0.0001234,2]
[336057423,1724682667084,-500.0,0.0001234,2]
[336057424,1724682667094,-564.72,0.0001234,2]
[336057425,1724682667103,-708.52,0.0001234,2]
[336057426,1724682667113,-500.0,0.0001234,2]
[336057427,1724682667123,-500.0,0.0001234,2]
[336057428,1724682667133,-618.53,0.0001234,2]
[336057429,1724682667142,-533.03,0.0001234,2]
[336057430,1724682667152,-500.0,0.0001234,2]
[336057431,1724682667161,-666.9,0.0001234,2]
[336057432,1724682667171,-782.810698,0.0001234,2]
[336057433,1724682667180,-691.93,0.0001234,2]
[336057434,1724682667190,-782.810698,0.0001234,2]
[336057435,1724682667199,-249.28727655,0.0001234,2]
[336057436,1724682667210,-605.88,0.0001234,2]
[336057437,1724682667220,-151.0,0.0001234,2]
[336057438,1724682667230,-500.0,0.0001234,2]
[336057439,1724682667239,-500.0,0.0001234,2]
[336057440,1724682667250,-672.92,0.0001234,2]
[336057441,1724682667260,-617.16,0.0001234,2]
[336057442,1724682667269,-883.75,0.0001234,2]
[336057443,1724682667278,-1012.42,0.0001234,2]
[336057444,1724682667287,-717.2,0.0001234,2]
[336057445,1724682667297,-843.93,0.0001234,2]
[336057446,1724682667306,-1177.7737,0.0001234,2]
[336057447,1724682667315,-1177.7737,0.0001234,2]
[336057448,1724682667324,-223.99645179,0.0001234,2]
[336057450,1724682705125,558.649597,0.00010959,2]
[336057452,1724682727782,1019.72191703,0.00010613,2]
[336057453,1724682727808,1456.93584817,0.00010613,2]
[336057466,1724683544323,-1954.76515119,9.717e-05,2]
[336057467,1724683594751,2439.49169075,8.861e-05,2]
[336057470,1724683647410,-7681.10737541,9.717e-05,2]
[336057471,1724683647434,-250.0,9.895e-05,2]
[336057472,1724683647457,-250.0,9.922e-05,2]
[336057473,1724683647479,-250.0,9.949e-05,2]
[336057474,1724683647500,-250.0,9.976e-05,2]
[336057475,1724683647522,-250.0,0.00010003,2]
[336057476,1724683647545,-300.0,0.00010029,2]
[336057477,1724683647566,-300.0,0.00010029,2]
[336057478,1724683647587,-450.0,0.0001003,2]
[336057479,1724683647609,-250.0,0.0001003,2]
[336057480,1724683647632,-250.0,0.00010057,2]
[336057481,1724683647653,-535.23487752,0.00010081,2]
[336057482,1724683647676,-250.0,0.00010085,2]
[336057483,1724683647703,-250.0,0.00010112,2]
[336057484,1724683647726,-250.0,0.00010139,2]
[336057485,1724683647749,-250.0,0.00010166,2]
[336057486,1724683647772,-250.0,0.00010193,2]
[336057487,1724683647795,-250.0,0.0001022,2]
[336057488,1724683647817,-250.0,0.00010247,2]
[336057489,1724683647836,-52.27731897,0.0001026,2]
[336057503,1724683747160,-646.64118143,0.00010081,2]
[336057504,1724683747184,-1671.98997101,0.0001026,2]
[336057505,1724683747209,-250.0,0.00010274,2]
[336057506,1724683747234,-250.0,0.00010302,2]
[336057507,1724683747259,-250.0,0.00010329,2]
[336057508,1724683747284,-250.0,0.00010356,2]
[336057509,1724683747307,-250.0,0.00010383,2]
[336057510,1724683747333,-250.0,0.0001041,2]
[336057511,1724683747356,-186.66923283,0.00010739,2]
[336057512,1724683747377,-487.0,0.00010957,2]
[336057513,1724683747399,-320.36127762,0.00010958,2]
[336057514,1724683747420,-187.26343479,0.00010958,2]
[336057515,1724683747442,-130.71034867,0.00010959,2]
[336057516,1724683748144,-245.20042333,0.00010959,2]
[336057517,1724683748225,-309.44300337,0.00011408,2]
[336057518,1724683748249,-217.9205408,0.00011414,2]
[336057521,1724683754606,168.51658632,0.00010739,2]
[336057523,1724683762407,154.72922386,0.00011409,2]
[336057534,1724683806614,1416.71864565,0.00010515,2]
[336057535,1724683806641,1539.45129548,0.00010515,2]
[336057536,1724683806665,1597.83653342,0.00010515,2]
[336057537,1724683806687,1200.66841871,0.00010515,2]
[336057538,1724683806709,1479.96271655,0.00010515,2]
[336057539,1724683806732,1347.3138,0.00010515,2]
[336057631,1724683832453,-938.22642531,0.00010515,2]
[336057632,1724683832465,-1541.21344508,0.00010515,2]
[336057636,1724683832648,-2162.93846735,0.00010515,2]
[336058067,1724683838356,-287.35724819,0.00010515,2]
[336058069,1724683838368,-432.85647337,0.00010515,2]
[336058073,1724683838398,-10955.45653089,0.00010515,2]
[336058075,1724683838408,-154.72922386,0.00011409,2]
[336058078,1724683838419,-300.0,0.00011511,2]
[336058080,1724683838430,-500.0,0.00011512,2]
[336058082,1724683838441,-500.0,0.00011512,2]
[336058084,1724683838452,-500.0,0.00011512,2]
[336058086,1724683838462,-500.0,0.00011512,2]
[336058088,1724683838472,-573.81,0.00011512,2]
[336058090,1724683838481,-500.89032894,0.00011512,2]
[336058092,1724683838491,-500.0,0.00011512,2]
[336058094,1724683838501,-500.0,0.00011512,2]
[336058096,1724683838512,-520.89,0.00011512,2]
[336058098,1724683838521,-500.0,0.00011512,2]
[336058100,1724683838531,-150.0,0.00011512,2]
[336058102,1724683838540,-500.0,0.00011512,2]
[336058104,1724683838550,-500.0,0.00011512,2]
[336058106,1724683838560,-500.0,0.00011512,2]
[336058108,1724683838570,-386.18,0.00011512,2]
[336058110,1724683838580,-500.0,0.00011512,2]
[336058112,1724683838589,-500.0,0.00011512,2]
[336058114,1724683838598,-523.45,0.00011512,2]
[336058116,1724683838608,-500.0,0.00011512,2]
[336058118,1724683838617,-500.0,0.00011512,2]
[336058120,1724683838627,-387.656194,0.00011512,2]
[336058122,1724683838637,-500.0,0.00011512,2]
[336058124,1724683838646,-708.09,0.00011512,2]
[336058126,1724683838656,-500.0,0.00011512,2]
[336058128,1724683838666,-500.0,0.00011512,2]
[336058130,1724683838675,-980.92,0.00011512,2]
[336058132,1724683838686,-500.0,0.00011512,2]
[336058134,1724683838695,-2411.27,0.00011512,2]
[336058136,1724683838704,-500.0,0.00011512,2]
[336058137,1724683838714,-500.0,0.00011512,2]
[336058139,1724683838723,-500.0,0.00011512,2]
[336058141,1724683838733,-500.0,0.00011512,2]
[336058143,1724683838744,-826.02,0.00011512,2]
[336058144,1724683838753,-500.0,0.00011512,2]
[336058145,1724683838763,-500.0,0.00011512,2]
[336058146,1724683838772,-1242.16,0.00011512,2]
[336058147,1724683838782,-500.0,0.00011512,2]
[336058149,1724683838791,-500.0,0.00011512,2]
[336058151,1724683838801,-500.0,0.00011512,2]
[336058153,1724683838810,-500.0,0.00011512,2]
[336058155,1724683838819,-709.66,0.00011512,2]
[336058157,1724683838829,-500.0,0.00011512,2]
[336058159,1724683838838,-500.0,0.00011512,2]
[336058161,1724683838847,-568.45,0.00011512,2]
[336058163,1724683838857,-517.46,0.00011512,2]
[336058165,1724683838866,-500.0,0.00011512,2]
[336058166,1724683838876,-500.0,0.00011512,2]
[336058167,1724683838886,-1084.83,0.00011512,2]
[336058173,1724683839123,-500.0,0.00011512,2]
[336058174,1724683839136,-622.4,0.00011512,2]
[336058175,1724683839150,-500.0,0.00011512,2]
[336058176,1724683839161,-500.0,0.00011512,2]
[336058177,1724683839171,-393.72504825,0.00011512,2]
[336058178,1724683839180,-569.51,0.00011512,2]
[336058179,1724683839191,-500.0,0.00011512,2]
[336058180,1724683839202,-622.00625689,0.00011512,2]
[336058181,1724683839211,-500.0,0.00011512,2]
[336058182,1724683839220,-500.0,0.00011512,2]
[336058183,1724683839232,-214.34875462,0.00011512,2]
[336058184,1724683839242,-608.38187655,0.00011512,2]
[336058185,1724683839252,-509.01,0.00011512,2]
[336058186,1724683839262,-500.0,0.00011512,2]
[336058187,1724683839272,-500.0,0.00011512,2]
[336058188,1724683839282,-568.93,0.00011512,2]
[336058189,1724683839291,-500.0,0.00011512,2]
[336058190,1724683839301,-618.11,0.00011512,2]
[336058191,1724683839311,-19806.16,0.00011512,2]
[336058192,1724683839320,-1814.86,0.00011512,2]
[336058193,1724683839336,-526.07081679,0.00011512,2]
[336058194,1724683839346,-500.0,0.00011512,2]
[336058195,1724683839356,-500.0,0.00011512,2]
[336058196,1724683839366,-500.0,0.00011512,2]
[336058197,1724683839376,-983.96,0.00011512,2]
[336058198,1724683839386,-500.0,0.00011512,2]
[336058199,1724683839396,-500.0,0.00011512,2]